Cogmind - Beta 13 *** ADVENTURER MODE // 2024.03.31 @ 13:12:44 Player: Cinnaquill Result: Destroyed by as-51949 with Assembled Blade Performance ------------- Evolutions (0) 0 Regions Visited (2) 400 Robots Destroyed (9) 45 Value Destroyed (183) 183 Prototype IDs (2) 40 Alien Tech Used (0) 0 Bonus (0) 0 TOTAL SCORE: 668 Bonus ------- None Cogmind --------- Core Integrity 0/250 Matter 300/300 Energy 100/100 System Corruption 0% Temperature Cool (0) Movement Core (350) Ox6 Location -10/Mines Parts ------- > --- POWER (1) -------- (None) > --- PROPULSION (2) --- (None) > --- UTILITY (2) ------ Large Storage Unit Signal Interpreter > --- WEAPON (2) ------- (None) > --- INVENTORY (15) --- Light Ion Engine Aluminum Leg Aluminum Leg Heat Sink Small Laser Datajack Peak State ------------ > --- POWER ------------ Light Ion Engine > --- PROPULSION ------- Wheel Wheel > --- UTILITY ---------- Large Storage Unit Medium Matter Pod > --- WEAPON ----------- Small Laser Assault Rifle > --- INVENTORY -------- Light Ion Engine Aluminum Leg Aluminum Leg [Rating: 7] Favorites ----------- Power Light Ion Engine Engine Light Ion Engine Propulsion Wheel Wheel Wheel Utility Large Storage Unit Device Heat Sink Storage Large Storage Unit Processor Signal Interpreter Weapon Assault Rifle Energy Gun Small Laser Energy Cannon Beam Cannon Ballistic Gun Assault Rifle Build | -11 -10 -10 ------- Run | Yrd Mat Min Slots Evolved . | . . . Power . | . . . Propulsion . | . . . Utility . | . . . Weapon . | . . . Parts Attached 12 | 5 7 . Power 1 | 1 . . Engine 1 | 1 . . Core . | . . . Reactor . | . . . Propulsion 2 | 2 . . Treads . | . . . Leg . | . . . Wheel 2 | 2 . . Hover . | . . . Flight . | . . . Utility 5 | . 5 . Device 1 | . 1 . Storage 3 | . 3 . Processor 1 | . 1 . Hackware . | . . . Protection . | . . . Artifact . | . . . Weapon 4 | 2 2 . Energy Gun 2 | 1 1 . Energy Cannon 1 | . 1 . Ballistic Gun 1 | 1 . . Ballistic Cannon . | . . . Launcher . | . . . Special Weapon . | . . . Impact Weapon . | . . . Slashing Weapon . | . . . Piercing Weapon . | . . . Special Melee Weapon . | . . . Unidentified Prototypes . | . . . Parts Lost 5 | . . 5 Power 1 | . . 1 Propulsion 2 | . . 2 Utility . | . . . Weapon 2 | . . 2 Highest Loss Streak 5 | . . 5 To Critical Strikes 1 | . . 1 Average Slot Usage (%) 85 | . 86 83 Engine 13 | . 14 10 Wheel 27 | . 28 24 Storage 9 | . 8 14 Processor 6 | . 5 14 Energy Gun 7 | . 7 . Energy Cannon 6 | . 6 10 Ballistic Gun 13 | . 14 10 Naked Turns . | . . . Heaviest Build 29 | 6 29 28 Greatest Support 20 | 20 20 10 Greatest Overweight (x) 6 | . 2 6 Average Overweight (x) . | . 1 2 Largest Inventory Capacity 15 | 5 15 15 Average Capacity 10 | 5 10 15 Most Carried 6 | 5 6 6 Average Carried 4 | 3 4 6 Final Capacity 15 | 5 15 15 Final Carried 6 | 5 6 6 Class Distribution -------------------- 100% | Mutant Dominant Class ---------------- Mutant | -10/Materials Mutant | -10/Mines Resources | -11 -10 -10 ----------- Run | Yrd Mat Min Matter Collected 394 | 323 71 . Remotely . | . . . Salvage Created 260 | 55 205 . Parts 18 | 4 14 . Haulers Intercepted . | . . . Recyclers Shooed . | . . . Parts Field Recycled . | . . . Retrieved Matter . | . . . Parts Self-Destructed . | . . . Prevented . | . . . Kills | -11 -10 -10 ------- Run | Yrd Mat Min Combat Hostiles Destroyed 7 | 1 6 . Guns 5 | 1 4 . Cannons 2 | . 2 . Classes Destroyed 4 | 2 2 . Worker 1 | 1 . . Watcher 1 | . 1 . Swarmer 3 | . 3 . Grunt 4 | 1 3 . Best Kill Streak 4 | 1 4 . Combat Bots Only 3 | 1 3 . Max Kills in Single Turn 2 | 1 2 . Gunslinging . | . . . Exploded . | . . . Melee . | . . . Uniques/NPCs Destroyed . | . . . Combat | -11 -10 -10 -------- Run | Yrd Mat Min Hostile Shots Fired 88 | 1 27 60 Missed 25 | . 5 20 Damage Taken 778 | 9 188 581 Core 252 | 9 39 204 Absorbed by Shields . | . . . Ignored by Resistances 216 | 3 53 160 Regen/Repaired (Parts) 12 | . 12 . Core Remaining (%) 96 | 96 . . Volleys Fired 18 | 4 11 3 Largest 2 | 2 2 2 Hottest 80 | 60 80 80 Shots Fired 35 | 8 22 5 Gun 28 | 8 18 2 Cannon 7 | . 4 3 Launcher . | . . . Special . | . . . Kinetic 17 | 4 11 2 Thermal 18 | 4 11 3 Explosive . | . . . Electromagnetic . | . . . Robot Hit Streak 12 | 8 12 10 Robot Miss Streak 2 | . 2 . Penetration Max . | . . . Secondary Targets . | . . . Shots Hit Robots 28 | 8 15 5 Core Hits 13 | 3 8 2 Critical Kills . | . . . Critical Parts Destroyed . | . . . Critical Strikes . | . . . Melee Attacks . | . . . Impact . | . . . Slashing . | . . . Piercing . | . . . Sneak Attacks . | . . . Combat Hostiles . | . . . Follow-up Attacks . | . . . Damage Inflicted 437 | 92 270 75 Guns 284 | 92 169 23 Cannons 105 | . 53 52 Explosions . | . . . Melee . | . . . Ramming 48 | . 48 . Kinetic 185 | 49 113 23 Thermal 204 | 43 109 52 Explosive . | . . . Electromagnetic . | . . . Impact . | . . . Slashing . | . . . Piercing . | . . . Highest Corruption . | . . . Average Corruption . | . . . Corruption Purged . | . . . Corruption Blocked . | . . . Overload Shots . | . . . Overflow Damage . | . . . Projectiles . | . . . Explosions . | . . . Melee . | . . . Knockbacks . | . . . Impact . | . . . Kinetic . | . . . Secondary . | . . . Self-Inflicted Damage 22 | . 22 . Shots . | . . . Rammed 7 | . 7 . Targets Rammed 7 | . 7 . Kicked . | . . . Crushed . | . . . Highest Temperature 102 | 20 102 41 Average Temperature 40 | 20 56 23 Received Heat Transfer 78 | 6 72 . Siege Activations . | . . . Robots Corrupted . | . . . Combat Hostiles . | . . . Parts Fried . | . . . Impact Corruptions . | . . . Robots Melted . | . . . Combat Hostiles . | . . . Parts Melted . | . . . Heat Transferred 447 | 100 236 111 Parts Sabotaged . | . . . Parts Stolen . | . . . Parts Stripped . | . . . Power Chain Reactions . | . . . Alert | -11 -10 -10 ------- Run | Yrd Mat Min Peak Influence 200 | 25 200 . Initial 13 | . 13 . Average 63 | 4 81 . Maximum Alert Level 1 | . 1 . Low Security (%) 96 | 100 95 100 Level 1 3 | . 4 . Level 2 . | . . . Level 3 . | . . . Level 4 . | . . . Level 5 . | . . . High Security . | . . . Max Security . | . . . Squads Dispatched 2 | . 2 . Investigation 2 | . 2 . Extermination . | . . . Reinforcement . | . . . Assault . | . . . Garrison . | . . . Intercept . | . . . Searches Triggered . | . . . Construction Impeded . | . . . Haulers Reinforced . | . . . Active Scanning Responses . | . . . Cargo Convoy Interrupts . | . . . Stealth | -11 -10 -10 --------- Run | Yrd Mat Min Distress Signals 2 | . 2 . Communications Jammed . | . . . Distress Signals . | . . . Times Spotted 21 | 1 10 10 Peak Tracking Total 10 | 1 4 10 Tactical Retreats 1 | . . 1 Traps | -11 -10 -10 ------- Run | Yrd Mat Min Traps Triggered 1 | . 1 . Indirectly . | . . . Trap Hack Attempts . | . . . Triggered . | . . . Disarmed . | . . . Reprogrammed . | . . . Reused . | . . . Traps Extracted . | . . . Installed . | . . . Triggered . | . . . Machines | -11 -10 -10 ---------- Run | Yrd Mat Min Machines Disabled . | . . . Max in Single Turn . | . . . Machines Repaired . | . . . Machines Dismantled . | . . . Machines Sabotaged . | . . . Overloaded Fab Kills . | . . . Hacking | -11 -10 -10 --------- Run | Yrd Mat Min Machines Accessed 6 | . 6 . Terminals 5 | . 5 . Fabricators . | . . . Repair Stations 1 | . 1 . Recycling Units . | . . . Scanalyzers . | . . . Garrison Access . | . . . Total Hacks 20 | . 20 . Successful 19 | . 19 . Failed 1 | . 1 . Catastrophic . | . . . Database Lockouts . | . . . Manual . | . . . Terminals 15 | . 15 . Fabricators . | . . . Repair Stations 5 | . 5 . Recycling Units . | . . . Scanalyzers . | . . . Garrison Access . | . . . Terminal Hacks 15 | . 15 . Record 8 | . 8 . Robot Analysis 2 | . 2 . Prototype ID Bank 1 | . 1 . Locate Traps 1 | . 1 . Dispatch Records 1 | . 1 . Recall Reinforcements 1 | . 1 . Zone Layout 1 | . 1 . Fabricator Hacks . | . . . Repair Station Hacks 4 | . 4 . Scan Component 2 | . 2 . Repair 2 | . 2 . Recycling Unit Hacks . | . . . Scanalyzer . | . . . Garrison Access Hacks . | . . . Unauthorized Hacks . | . . . Terminals . | . . . Fabricators . | . . . Repair Stations . | . . . Recycling Units . | . . . Scanalyzers . | . . . Garrison Access . | . . . Data Cores Recovered . | . . . Used . | . . . Hacking Detections 3 | . 3 . Full Trace Events 1 | . 1 . Feedback Events . | . . . Feedback Blocked . | . . . Robot Schematics Acquired . | . . . Robots Built . | . . . Authchips . | . . . Time . | . . . Total Robot Build Rating . | . . . Part Schematics Acquired . | . . . Parts Built . | . . . Authchips . | . . . Time . | . . . Total Part Build Rating . | . . . Parts Repaired 2 | . 2 . Time 52 | . 52 . Parts Recycled . | . . . Recycled Matter . | . . . Retrieved Matter . | . . . Retrieved Components . | . . . Parts Scanalyzed . | . . . Part Schematics Acquired . | . . . Parts Damaged . | . . . Bothacking | -11 -10 -10 ------------ Run | Yrd Mat Min Used RIF Installer . | . . . Robots Hacked . | . . . Non-combat . | . . . Combat . | . . . Robot Hacks Applied . | . . . Relay Couplers Released . | . . . Fabnet Peak Effective % . | . . . Robots Rewired . | . . . Allies Hacked . | . . . Hacks Repelled . | . . . Allies | -11 -10 -10 -------- Run | Yrd Mat Min Total Allies . | . . . Largest Group . | . . . Highest-Rated Group . | . . . Highest-Rated Ally . | . . . Total Orders . | . . . Ally Attacks . | . . . Total Damage . | . . . Kills . | . . . Allies Corrupted . | . . . Allies Melted . | . . . Intel | -11 -10 -10 ------- Run | Yrd Mat Min Robot Analysis Total 2 | . 2 . Derelict Logs Recovered . | . . . Drone Launches . | . . . Drone Recoveries . | . . . Exploration | -11 -10 -10 ------------- Run | Yrd Mat Min Turns Passed 719 | 104 549 66 Spaces Moved 642 | 108 485 49 Core 33 | 30 . 3 Treads . | . . . Legs . | . . . Wheels 609 | 78 485 46 Hover . | . . . Flight . | . . . Fastest Speed 50 | 50 80 95 Average Speed 94 | 71 96 123 Slowest Speed 350 | 80 110 350 Overloaded Moves . | . . . Propulsion Burnouts . | . . . Robots Hopped . | . . . Cave-ins Triggered . | . . . Exploration Rate (%) 26 | 5 64 11 Regions Visited 2 Branch Regions 1 Pre-discovered Areas . | . . . Known Exits Taken 1 | . 1 . Unknown Exits Taken 1 | 1 . . Scrap Searched . | . . . Spaces Dug . | . . . Terrain Destroyed . | . . . Melee . | . . . Projectile . | . . . AOE . | . . . Terrain Rammed . | . . . Walls Destroyed . | . . . Machines Disabled . | . . . Actions | -11 -10 -10 --------- Run | Yrd Mat Min Total 723 | 126 545 52 Wait 22 | . 22 . Move 640 | 107 484 49 Hop . | . . . Pick Up 19 | 10 9 . Fast Attach . | . . . Attach 10 | 5 5 . Detach 1 | . 1 . Swap 2 | . 2 . Drop 4 | . 4 . Fire 18 | 4 11 3 Melee . | . . . Ram 7 | . 7 . Kick . | . . . Crush . | . . . Escape Stasis . | . . . Rewire . | . . . Trap . | . . . Miscellaneous . | . . . Route ------- -11/Scrapyard -10/Materials (discovered 2 exits: [*Mat] / *Min) -10/Mines History --------- Turn | Location | Event 2 | -11/Scrapyard | Met Revision 17 84 | -11/Scrapyard | Discovered new exit (range 8) 105 | -11/Scrapyard | Entered Materials 256 | -10/Materials | Repaired Sml. Laser 282 | -10/Materials | Repaired Lgt. Ion Engine 305 | -10/Materials | Build established: Mutant 496 | -10/Materials | Discovered new exit (range 15) 564 | -10/Materials | Identified exit to Mines 613 | -10/Materials | Discovered new exit (range 16) 654 | -10/Materials | Entered Mines 674 | -10/Mines | Assembled infested the area 710 | -10/Mines | Core integrity fell below 50% 720 | -10/Mines | Core integrity fell below 20% 720 | -10/Mines | Destroyed by as-51949 with Assembled Blade Last Messages --------------- 00614_ ALERT: Suspicious activity at Terminal M008. Dispatching Investigation squad. 00620_ Slammed into U-05 Engineer. 00620_ Wheel broken. 00620_ Destabilizing: Short circuit. 00638_ Slammed into A-02 Transporter. LOCATION=MINES GOAL=ESCAPE Something is scanning the area. 00674_ ALERT: Infestation in the mines, dispatching Demolisher response squad. 00701_ as-95707 destroyed. 00704_ Assault Rifle destroyed. 00705_ Lgt. Ion Engine destroyed. 00709_ Beam Cannon destroyed. 00712_ Wheel destroyed. 00717_ Critical hit (Destroy). 00717_ Broken Wheel destroyed. 00718_ as-03990 destroyed. [Achievement: First Step to Greatness] Map ----- +----------------------------------------------------+ | | | | | ?????????????????????????????????????????????????? | | ?????????????????????????????????????????????????? | | ?????????????????????????????????????????????????? | | ?????????????????????????????????????????????????? | | ?????????????????????????????????????????????????? | | ?????????????????????????????????????????????????? | | ?????????????????????????????????????????????????? | | ?????????????????????????????????????????????????? | | ?????????????????????????????????????????????????? | | ?????????????????????????????????????????????????? | | ?????????????????????????????????????????????????? | | ???????????????????????????###???????????????????? | | ??????????????????????????# ##??????????????????? | | ?????????????????????????# #??????????????????? | | ????????????????????##### #??????????????????? | | ??????????????#####?# #??????????????????? | | ?????????????## ### !! #???????????????????? | | ????????????## ## ! ! ##??????????????????? | | ????????????# ## ! ! ####???????????????? | | ????????????## ## !!! ##??????????????? | | ?????????????### # #??????????????? | | ???????????????## #??????????????? | | ????????????????# #?????????????????????? | | ????????????????## %a@##?????????????????????? | | ?????????????????## aaa###??????????????????????? | | ?????????????????## ##????????????????????????? | | ????????##########%a #?????????????????????????? | | ????????# a #?????????????????????????? | | ????????# ###### #?????????????????????????? | | ????????# #????# ##?????????????????????????? | | ??????? #????## #??????????????????????????? | | ??????### #?????## ##??????????????????????????? | | ????????# #??????####???????????????????????????? | | ????????# #?????????????????????????????????????? | | ????????# #?????????????????????????????????????? | | ????????# #?????????????????????????????????????? | | ???????? ??????????????????????????????????????? | | ???????? ??????????????????????????????????????? | | ???????? ??????????????????????????????????????? | | ???????? ??????????????????????????????????????? | | ???????? ??????????????????????????????????????? | | ???????? ??????????????????????????????????????? | | ????????"##??????????????????????????????????????? | | ?????????????????????????????????????????????????? | | ?????????????????????????????????????????????????? | | ?????????????????????????????????????????????????? | | ?????????????????????????????????????????????????? | | ?????????????????????????????????????????????????? | +----------------------------------------------------+ Best States ------------- Heat Dissipation 35 Energy Generation 10 Energy Capacity 125 Matter Stores 370 Matter Capacity 400 Sight Range 16 Terrain Scan Density 10 Resistance: KI 20 Resistance: TH 20 Resistance: EX 20 Resistance: EM 20 Resistance: I 20 Resistance: S 20 Resistance: P 20 Evasion (%) 50 Offensive Hacking 10 Item Schematics ----------------- None Robot Schematics ------------------ None Fabricated ------------ Nothing Alien Tech Used ----------------- None Achievements -------------- First Step to Greatness Part-time Mechanic Challenges ------------ None Game ------ Seed GrapheneOmegaCloak Manual? 0 Play Time 00:15:03 Cumulative 1.4 hours Start 2024.03.31 @ 12:49:21 End 2024.03.31 @ 13:12:44 Sessions 6 Manual Loads 0 Difficulty Adventurer Special Mode None Game No. 2 Rogue 0 Adventurer 2 Explorer 0 Win Type - Total 0 Types 0/0/0/0/0/0/0/0/0 Lore% 1 Gallery% 4 Achievement% 6 Wizard Run 0 Options --------- Layout 1 ASCII 0 Keyboard 0 Movement Arrows Keybinds 0 Fullscreen 1 Font 24/Proggy Map View 50x35 Zoom Use 0% Tactical HUD 1 Map Filters NONE Filters NONE Steam 1 RUN: 73aaa501-fdf0-4671-86ea-b2fe6c50dc51